fUSD/lending_fUSD_20251225
["ID","MTS","AMOUNT","RATE_DAILY","PERIOD"]
[399765532,1766661038078,-841.43,0.00011266,2]
[399765533,1766661038088,-166.66,0.00011336,2]
[399765535,1766661038098,-841.43,0.0001154,2]
[399765537,1766661038107,-200.0,0.0001154,2]
[399765539,1766661038118,-200.0,0.0001154,2]
[399765541,1766661038128,-500.0,0.0001154,2]
[399765543,1766661038139,-1000.0,0.00011553,2]
[399765545,1766661038149,-14782.8116,0.00011553,2]
[399765547,1766661038160,-43535.1980641,0.00011566,2]
[399765549,1766661038170,-29379.68656307,0.00011566,2]
[399765550,1766661038181,-166.66,0.0001171,2]
[399765551,1766661038192,-841.43,0.00011814,2]
[399765552,1766661038203,-500.0,0.000119,2]
[399765553,1766661038214,-160.24066084,0.000119,2]
[399765554,1766661038225,-385.4280122,0.000119,2]
[399765555,1766661038235,-500.0,0.000119,2]
[399765556,1766661038246,-500.0,0.000119,2]
[399765557,1766661038256,-500.0,0.000119,2]
[399765558,1766661038267,-500.0,0.000119,2]
[399765559,1766661038278,-500.26609484,0.000119,2]
[399765560,1766661038289,-500.0,0.000119,2]
[399765561,1766661038299,-162.14010423,0.000119,2]
[399765562,1766661038309,-174.86770557,0.000119,2]
[399765563,1766661038320,-500.0,0.000119,2]
[399765564,1766661038330,-609.0239433,0.000119,2]
[399765565,1766661038340,-500.0,0.000119,2]
[399765566,1766661038350,-216.41876063,0.000119,2]
[399765567,1766661038360,-500.0,0.000119,2]
[399765568,1766661038370,-500.0,0.000119,2]
[399765569,1766661038381,-500.0,0.000119,2]
[399765570,1766661038390,-500.0,0.000119,2]
[399765571,1766661038400,-315.61870273,0.000119,2]
[399765572,1766661038410,-500.54870423,0.000119,2]
[399765573,1766661038422,-500.0,0.000119,2]
[399765574,1766661038432,-501.82675506,0.000119,2]
[399765575,1766661038443,-318.77837914,0.000119,2]
[399765576,1766661038453,-500.25597826,0.000119,2]
[399765577,1766661038463,-500.0,0.000119,2]
[399765578,1766661038474,-1200.54,0.00011901,2]
[399765579,1766661038484,-2669.0,0.00011959,2]
[399765580,1766661038494,-2669.0,0.00011986,2]
[399765581,1766661038504,-2669.0,0.00012014,2]
[399765582,1766661038515,-255.0,0.00012035,2]
[399765583,1766661038525,-2669.0,0.00012041,2]
[399765584,1766661038535,-2669.0,0.00012069,2]
[399765585,1766661038547,-1379.0,0.00012078,2]
[399765586,1766661038557,-420.0,0.00012078,2]
[399765587,1766661038568,-420.0,0.00012078,2]
[399765588,1766661038578,-166.66,0.00012084,2]
[399765589,1766661038588,-841.43,0.00012088,2]
[399765590,1766661038599,-200.0,0.00012088,2]
[399765591,1766661038609,-200.0,0.00012088,2]
[399765592,1766661038619,-500.0,0.00012088,2]
[399765593,1766661038629,-250.0,0.00012089,2]
[399765594,1766661038640,-1680.0,0.0001209,2]
[399765595,1766661038650,-250.0,0.0001209,2]
[399765596,1766661038661,-300.0,0.0001209,2]
[399765597,1766661038670,-193.54890697,0.00012091,2]
[399765598,1766661038681,-300.0,0.00012091,2]
[399765599,1766661038691,-2669.0,0.00012096,2]
[399765600,1766661038701,-300.0,0.00012098,2]
[399765601,1766661038712,-2669.0,0.00012123,2]
[399765602,1766661038722,-1256.0,0.00012133,2]
[399765603,1766661038733,-1256.0,0.00012133,2]
[399765604,1766661038744,-1256.0,0.00012133,2]
[399765605,1766661038755,-1256.0,0.00012133,2]
[399765606,1766661038766,-2669.0,0.00012151,2]
[399765607,1766661038778,-2669.0,0.00012178,2]
[399765608,1766661038788,-2669.0,0.00012206,2]
[399765609,1766661038799,-43535.1980641,0.00012233,2]
[399765610,1766661038810,-29379.68656307,0.00012233,2]
[399765611,1766661038820,-2669.0,0.00012233,2]
[399765612,1766661038830,-2669.0,0.0001226,2]
[399765613,1766661038840,-2669.0,0.00012288,2]
[399765614,1766661038850,-2669.0,0.00012315,2]
[399765615,1766661038860,-2669.0,0.00012343,2]
[399765616,1766661038871,-841.43,0.00012362,2]
[399765617,1766661038882,-2669.0,0.0001237,2]
[399765618,1766661038892,-2669.0,0.00012397,2]
[399765619,1766661038901,-2669.0,0.00012425,2]
[399765620,1766661038911,-500.0,0.00012448,2]
[399765621,1766661038922,-1000.0,0.00012448,2]
[399765622,1766661038932,-168.84175508,0.00012448,2]
[399765623,1766661038942,-1000.0,0.00012448,2]
[399765624,1766661038953,-1000.0,0.00012448,2]
[399765625,1766661038963,-502.99400047,0.00012448,2]
[399765626,1766661038973,-1000.0,0.00012448,2]
[399765627,1766661038983,-548.93078246,0.00012448,2]
[399765628,1766661038993,-1000.0,0.00012448,2]
[399765629,1766661039004,-2669.0,0.00012452,2]
[399765630,1766661039014,-166.66,0.00012458,2]
[399765631,1766661039023,-1000.0,0.00012479,2]
[399765632,1766661039033,-2669.0,0.0001248,2]
[399765633,1766661039043,-150.13,0.00012481,2]
[399765634,1766661039053,-600.0,0.00012495,2]
[399765635,1766661039064,-2669.0,0.00012507,2]
[399765636,1766661039077,-2669.0,0.00012534,2]
[399765637,1766661039088,-2669.0,0.00012562,2]
[399765638,1766661039098,-2671.18181479,0.00012589,2]
[399765639,1766661039108,-841.43,0.00012636,2]
[399765640,1766661039119,-200.0,0.00012636,2]
[399765641,1766661039129,-200.0,0.00012636,2]
[399765642,1766661039138,-500.0,0.00012636,2]
[399765643,1766661039150,-322.6107,0.00012637,2]
[399765644,1766661039160,-574.12855637,0.00012637,2]
[399765645,1766661039170,-468.52172957,0.00012637,2]
[399765646,1766661039179,-500.0,0.00012637,2]
[399765647,1766661039190,-500.0,0.00012637,2]
[399765648,1766661039200,-500.0,0.00012637,2]
[399765649,1766661039209,-500.0,0.00012637,2]
[399765650,1766661039220,-500.0,0.00012637,2]
[399765651,1766661039229,-500.0,0.00012637,2]
[399765652,1766661039253,-500.0,0.00012637,2]
[399765653,1766661039264,-500.0,0.00012637,2]
[399765654,1766661039275,-500.0,0.00012637,2]
[399765655,1766661039285,-500.0,0.00012637,2]
[399765656,1766661039296,-500.0,0.00012637,2]
[399765657,1766661039305,-500.0,0.00012637,2]
[399765658,1766661039315,-151.0,0.00012637,2]
[399765659,1766661039325,-500.0,0.00012637,2]
[399765660,1766661039336,-1500.0,0.00012637,2]
[399765661,1766661039346,-500.0,0.00012637,2]
[399765662,1766661039357,-1500.0,0.00012637,2]
[399765663,1766661039368,-500.0,0.00012637,2]
[399765664,1766661039379,-1500.0,0.00012637,2]
[399765665,1766661039390,-500.0,0.00012637,2]
[399765666,1766661039401,-1000.0,0.00012637,2]
[399765667,1766661039411,-500.0,0.00012637,2]
[399765668,1766661039421,-500.0,0.00012637,2]
[399765669,1766661039431,-500.0,0.00012637,2]
[399765670,1766661039443,-500.0,0.00012637,2]
[399765671,1766661039454,-500.0,0.00012637,2]
[399765672,1766661039464,-500.0,0.00012637,2]
[399765673,1766661039475,-500.0,0.00012637,2]
[399765674,1766661039485,-500.0,0.00012637,2]
[399765675,1766661039494,-500.0,0.00012637,2]
[399765676,1766661039504,-500.0,0.00012637,2]
[399765677,1766661039514,-500.0,0.00012637,2]
[399765678,1766661039523,-543.0,0.00012637,2]
[399765679,1766661039533,-500.0,0.00012637,2]
[399765680,1766661039542,-200.0,0.00012637,2]
[399765681,1766661039552,-500.0,0.00012637,2]
[399765682,1766661039562,-500.0,0.00012637,2]
[399765683,1766661039573,-207.4,0.00012637,2]
[399765684,1766661039583,-334.76468062,0.00012637,2]
[399765685,1766661039593,-200.15744202,0.00012637,2]
[399765686,1766661039603,-154.0,0.00012637,2]
[399765687,1766661039619,-250.0,0.00012637,2]
[399765688,1766661039630,-250.0,0.00012637,2]
[399765689,1766661039640,-250.0,0.00012637,2]
[399765690,1766661039650,-250.0,0.00012637,2]
[399765691,1766661039660,-620.0,0.00012637,2]
[399765692,1766661039670,-250.0,0.00012637,2]
[399765693,1766661039680,-250.0,0.00012637,2]
[399765694,1766661039690,-250.0,0.00012637,2]
[399765695,1766661039701,-250.0,0.00012637,2]
[399765696,1766661039711,-250.0,0.00012637,2]
[399765697,1766661039721,-250.0,0.00012637,2]
[399765698,1766661039731,-250.0,0.00012637,2]
[399765699,1766661039741,-1500.0,0.00012637,2]
[399765700,1766661039751,-1500.0,0.00012637,2]
[399765701,1766661039761,-1500.0,0.00012637,2]
[399765702,1766661039771,-1500.0,0.00012637,2]
[399765703,1766661039781,-1500.0,0.00012637,2]
[399765704,1766661039792,-1500.0,0.00012637,2]
[399765705,1766661039804,-1500.0,0.00012637,2]
[399765706,1766661039816,-1500.0,0.00012637,2]
[399765707,1766661039827,-1500.0,0.00012637,2]
[399765708,1766661039838,-1500.0,0.00012637,2]
[399765709,1766661039848,-1500.0,0.00012637,2]
[399765710,1766661039859,-166.66,0.00012832,2]
[399765711,1766661039870,-43535.1980641,0.00012899,2]
[399765712,1766661039881,-29379.68656307,0.00012899,2]
[399765713,1766661039891,-841.49238286,0.0001291,2]
[399765714,1766661039908,-1500.0,0.00012996,2]
[399765715,1766661039918,-462.02055158,0.00012996,2]
[399765716,1766661039928,-1500.0,0.00012996,2]
[399765717,1766661039939,-500.0,0.00012996,2]
[399765718,1766661039949,-622.40483388,0.00012996,2]
[399765719,1766661039965,-433.0,0.00013179,2]
[399765720,1766661039975,-200.0,0.00013184,2]
[399765721,1766661039986,-200.0,0.00013184,2]
[399765722,1766661039997,-500.0,0.00013184,2]
[399765723,1766661040007,-595.37131296,0.00013185,2]
[399765724,1766661040017,-166.66,0.00013207,2]
[399765725,1766661040027,-587.0,0.00013272,2]
[399765726,1766661040037,-587.0,0.00013272,2]
[399765727,1766661040047,-2351.0,0.00013299,2]
[399765728,1766661040058,-554.35,0.0001337,2]
[399765729,1766661040069,-150.0,0.00013371,2]
[399765730,1766661040083,-38107.57,0.00013507,2]
[399765731,1766661040093,-2000.0,0.00013544,2]
[399765732,1766661040103,-220.5095019,0.00013544,2]
[399765733,1766661040115,-1778.12366067,0.00013556,2]
[399765734,1766661040126,-43535.1980641,0.00013566,2]
[399765735,1766661040137,-500.0,0.00013698,2]
[399765736,1766661040149,-500.0,0.00013698,2]
[399765737,1766661040160,-500.0,0.00013698,2]
[399765738,1766661040170,-500.0,0.00013698,2]
[399765739,1766661040181,-500.0,0.00013698,2]
[399765740,1766661040191,-500.0,0.00013698,2]
[399765741,1766661040202,-500.0,0.00013698,2]
[399765742,1766661040212,-500.0,0.00013698,2]
[399765743,1766661040223,-500.0,0.00013698,2]
[399765744,1766661040234,-500.0,0.00013698,2]
[399765745,1766661040244,-500.0,0.00013698,2]
[399765746,1766661040255,-507.55739974,0.00013698,2]
[399765747,1766661040265,-500.0,0.00013698,2]
[399765748,1766661040275,-451.48949058,0.00013698,2]
[399765749,1766661040285,-500.0,0.00013698,2]
[399765750,1766661040295,-500.0,0.00013698,2]
[399765751,1766661040306,-500.0,0.00013698,2]
[399765752,1766661040317,-500.0,0.00013698,2]
[399765753,1766661040332,-500.0,0.00013698,2]
[399765754,1766661040343,-500.0,0.00013698,2]
[399765755,1766661040354,-500.0,0.00013698,2]
[399765756,1766661040365,-500.0,0.00013698,2]
[399765757,1766661040375,-500.0,0.00013698,2]
[399765758,1766661040384,-500.0,0.00013698,2]
[399765759,1766661040394,-500.0,0.00013698,2]
[399765760,1766661040405,-500.0,0.00013698,2]
[399765761,1766661040416,-500.0,0.00013698,2]
[399765762,1766661040426,-500.0,0.00013698,2]
[399765763,1766661040436,-500.0,0.00013698,2]
[399765764,1766661040446,-500.0,0.00013698,2]
[399765765,1766661040456,-321.45865313,0.00013698,2]
[399765767,1766661040466,-289.9076874,0.00013698,2]
[399765768,1766661040476,-500.0,0.00013698,2]
[399765770,1766661040487,-613.33,0.00013699,2]
[399765772,1766661040498,-1258.14,0.00013699,2]
[399765775,1766661040508,-416.68348694,0.00013699,2]
[399765777,1766661040518,-500.0,0.00013699,2]
[399765778,1766661040528,-500.0,0.00013699,2]
[399765780,1766661040538,-358.54818512,0.00013699,2]
[399765782,1766661040548,-215.0738,0.00013731,2]
[399765785,1766661040559,-200.0,0.00013732,2]
[399765787,1766661040570,-200.0,0.00013732,2]
[399765789,1766661040579,-500.0,0.00013732,2]
[399765791,1766661040589,-617.40005154,0.00013733,2]
[399765793,1766661040600,-1000.0,0.00013865,2]
[399765795,1766661040610,-1000.0,0.00013998,2]
[399765797,1766661040621,-334.5472959,0.00014006,2]
[399765799,1766661040631,-151.0,0.00014006,2]
[399765801,1766661040641,-543.0,0.00014006,2]
[399765803,1766661040651,-642.94,0.00014006,2]
[399765805,1766661040661,-2016.84817673,0.00014042,2]
[399765807,1766661040672,-2500.0,0.00014092,2]
[399765809,1766661040686,-43535.1980641,0.00014233,2]
[399765811,1766661040697,-500.0,0.00014242,2]
[399765814,1766661040708,-307.97721752,0.0001428,2]
[399765816,1766661040718,-500.0,0.0001428,2]
[399765818,1766661040729,-640.24385345,0.00014281,2]
[399765820,1766661040739,-736.0,0.00014432,2]
[399765822,1766661040750,-10000.0,0.0001451,2]
[399765824,1766661040761,-250.0,0.00014523,2]
[399765826,1766661040771,-1000.0,0.00014545,2]
[399765828,1766661040781,-15044.79,0.00014572,2]
[399765830,1766661040791,-823.0,0.00014585,2]
[399765832,1766661040801,-823.0,0.00014585,2]
[399765834,1766661040812,-3292.0,0.00014629,2]
[399765836,1766661040822,-500.0,0.0001464,2]
[399765838,1766661040834,-215.22306719,0.000148,2]
[399765840,1766661040844,-4305.33,0.00014806,2]
[399765842,1766661040854,-663.93287602,0.00014829,2]
[399765844,1766661040864,-11017.0,0.00014866,2]
[399765847,1766661040880,-43535.1980641,0.000149,2]
[399765849,1766661040890,-246.80340688,0.000149,2]
[399765851,1766661040901,-200.0,0.00014944,2]
[399765853,1766661040911,-150.15,0.00015,2]
[399765855,1766661040921,-150.13,0.00015085,2]
[399765857,1766661040931,-600.0,0.00015114,2]
[399765859,1766661040941,-502.0,0.00015123,2]
[399765861,1766661040951,-1000.0,0.00015252,2]
[399765863,1766661040961,-500.0,0.00015342,2]
[399765865,1766661040972,-1109.00444245,0.00015342,2]
[399765867,1766661040982,-346.92554585,0.00015375,2]
[399765869,1766661040992,-217.57602405,0.00015375,2]
[399765870,1766661041002,-543.0,0.00015375,2]
[399765871,1766661041012,-666.72878,0.00015375,2]
[399765872,1766661041022,-688.49839244,0.00015377,2]
[399765873,1766661041032,-6143.59,0.00015392,2]
[399765874,1766661041042,-43535.1980641,0.00015566,2]
[399765875,1766661041052,-10000.0,0.00015634,2]
[399765876,1766661041065,-1252.0,0.00015805,2]
[399765877,1766661041079,-287.47,0.00015855,2]
[399765878,1766661041090,-197.6,0.00015898,2]
[399765879,1766661041100,-713.97283296,0.00015925,2]
[399765880,1766661041111,-1152.0,0.00016028,2]
[399765881,1766661041121,-1152.0,0.00016028,2]
[399765882,1766661041132,-583.07830005,0.00016057,2]
[399765883,1766661041143,-41325.20904142,0.00016059,2]
[399765884,1766661041153,-500.0,0.00016082,2]
[399765885,1766661041163,-4609.0,0.00016092,2]
[399765886,1766661041174,-5528.98,0.00016116,2]
[399765887,1766661041184,-3459.0,0.00016171,2]
[399765888,1766661041194,-1327.0,0.00016171,2]
[399765889,1766661041204,-612.0,0.00016171,2]
[399765890,1766661041214,-1610.0,0.00016171,2]
[399765891,1766661041225,-1271.446,0.00016171,2]
[399765892,1766661041234,-432.0,0.00016171,2]
[399765893,1766661041244,-564.0,0.00016181,2]
[399765894,1766661041254,-6534.0,0.00016181,2]
[399765895,1766661041264,-4807.0,0.00016181,2]
[399765896,1766661041275,-500.0,0.00016183,2]
[399765897,1766661041286,-500.0,0.00016183,2]
[399765898,1766661041296,-500.0,0.00016183,2]
[399765899,1766661041306,-500.0,0.00016183,2]
[399765900,1766661041316,-160.176,0.00016183,2]
[399765901,1766661041326,-500.0,0.00016183,2]
[399765902,1766661041336,-500.0,0.00016183,2]
[399765903,1766661041346,-500.0,0.00016183,2]
[399765904,1766661041356,-500.0,0.00016183,2]
[399765905,1766661041366,-500.0,0.00016183,2]
[399765906,1766661041377,-500.0,0.00016183,2]
[399765907,1766661041387,-500.0,0.00016183,2]
[399765908,1766661041398,-500.0,0.00016183,2]
[399765909,1766661041407,-500.0,0.00016183,2]
[399765910,1766661041418,-500.66742167,0.00016183,2]
[399765911,1766661041427,-500.0,0.00016183,2]
[399765912,1766661041437,-500.0,0.00016183,2]
[399765913,1766661041448,-500.0,0.00016183,2]
[399765914,1766661041458,-500.0,0.00016183,2]
[399765915,1766661041467,-500.0,0.00016183,2]
[399765916,1766661041478,-164.92711325,0.00016183,2]
[399765917,1766661041488,-500.0,0.00016183,2]
[399765918,1766661041498,-150.13,0.00016198,2]
[399765919,1766661041508,-150.0,0.00016223,2]
[399765920,1766661041518,-200.0,0.00016223,2]
[399765921,1766661041529,-200.0,0.00016223,2]
[399765922,1766661041538,-150.891,0.00016223,2]
[399765923,1766661041548,-217.814,0.00016223,2]
[399765924,1766661041559,-256.083,0.00016223,2]
[399765925,1766661041569,-156.406,0.00016223,2]
[399765926,1766661041579,-250.0,0.00016223,2]
[399765927,1766661041589,-243.792,0.00016223,2]
[399765928,1766661041599,-211.543,0.00016223,2]
[399765929,1766661041609,-250.0,0.00016223,2]
[399765930,1766661041619,-250.0,0.00016223,2]
[399765931,1766661041628,-167.0,0.00016223,2]
[399765932,1766661041638,-227.273,0.00016223,2]
[399765933,1766661041648,-600.0,0.0001623,2]
[399765934,1766661041658,-43535.1980641,0.00016233,2]
[399765935,1766661041669,-531.21073377,0.00016238,2]
[399765936,1766661041679,-272.63800371,0.0001625,2]
[399765937,1766661041689,-228.0,0.000164,2]
[399765938,1766661041699,-319.0,0.000164,2]
[399765939,1766661041708,-182.0,0.000164,2]
[399765940,1766661041718,-184.24951816,0.000164,2]
[399765941,1766661041729,-355.0,0.00016416,2]
[399765942,1766661041739,-500.0,0.00016427,2]
[399765943,1766661041749,-500.0,0.00016427,2]
[399765944,1766661041759,-517.57679154,0.00016438,2]
[399765945,1766661041769,-517.57679154,0.00016438,2]
[399765946,1766661041779,-517.57679154,0.00016438,2]
[399765947,1766661041791,-517.57679154,0.00016438,2]
[399765948,1766661041802,-517.57679154,0.00016438,2]
[399765949,1766661041812,-517.57679154,0.00016438,2]
[399765950,1766661041822,-517.57679154,0.00016438,2]
[399765951,1766661041832,-517.57679154,0.00016438,2]
[399765952,1766661041842,-517.57679154,0.00016438,2]
[399765953,1766661041852,-517.57679154,0.00016438,2]
[399765954,1766661041863,-517.57679154,0.00016438,2]
[399765955,1766661041872,-517.57679154,0.00016438,2]
[399765956,1766661041883,-517.57679154,0.00016438,2]
[399765957,1766661041893,-517.57679154,0.00016438,2]
[399765958,1766661041903,-517.57679154,0.00016438,2]
[399765959,1766661041913,-517.57679154,0.00016438,2]
[399765960,1766661041924,-517.57679154,0.00016438,2]
[399765961,1766661041934,-517.57679154,0.00016438,2]
[399765962,1766661041944,-517.57679154,0.00016438,2]
[399765963,1766661041955,-517.57679154,0.00016438,2]
[399765964,1766661041965,-517.57679154,0.00016438,2]
[399765965,1766661041975,-517.57679154,0.00016438,2]
[399765966,1766661041986,-517.57679154,0.00016438,2]
[399765967,1766661041996,-517.57679154,0.00016438,2]
[399765968,1766661042007,-517.57679154,0.00016438,2]
[399765969,1766661042018,-517.57679154,0.00016438,2]
[399765970,1766661042028,-517.57679154,0.00016438,2]
[399765971,1766661042039,-517.57679154,0.00016438,2]
[399765972,1766661042050,-517.57679154,0.00016438,2]
[399765973,1766661042060,-517.57679154,0.00016438,2]
[399765974,1766661042071,-517.57679154,0.00016438,2]
[399765975,1766661042084,-517.57679154,0.00016438,2]
[399765976,1766661042349,-517.57679154,0.00016438,2]
[399765977,1766661042361,-517.57679154,0.00016438,2]
[399765978,1766661042372,-517.57679154,0.00016438,2]
[399765979,1766661042382,-517.57679154,0.00016438,2]
[399765980,1766661042392,-517.57679154,0.00016438,2]
[399765981,1766661042402,-517.57679154,0.00016438,2]
[399765982,1766661042413,-517.57679154,0.00016438,2]
[399765983,1766661042423,-517.57679154,0.00016438,2]
[399765984,1766661042434,-517.57679154,0.00016438,2]
[399765985,1766661042444,-517.57679154,0.00016438,2]
[399765986,1766661042455,-517.57679154,0.00016438,2]
[399765987,1766661042465,-517.57679154,0.00016438,2]
[399765988,1766661042475,-517.57679154,0.00016438,2]
[399765989,1766661042486,-517.57679154,0.00016438,2]
[399765990,1766661042496,-517.57679154,0.00016438,2]
[399765991,1766661042507,-517.57679154,0.00016438,2]
[399765993,1766661042517,-517.57679154,0.00016438,2]
[399765994,1766661042527,-517.57679154,0.00016438,2]
[399765995,1766661042537,-517.57679154,0.00016438,2]
[399765996,1766661042547,-517.57679154,0.00016438,2]
[399765997,1766661042558,-517.57679154,0.00016438,2]
[399765998,1766661042568,-517.57679154,0.00016438,2]
[399765999,1766661042579,-517.57679154,0.00016438,2]
[399766000,1766661042589,-517.57679154,0.00016438,2]
[399766001,1766661042606,-517.57679154,0.00016438,2]
[399766002,1766661042625,-517.57679154,0.00016438,2]
[399766003,1766661042635,-517.57679154,0.00016438,2]
[399766004,1766661042646,-517.57679154,0.00016438,2]
[399766005,1766661042656,-517.57679154,0.00016438,2]
[399766006,1766661042667,-517.57679154,0.00016438,2]
[399766007,1766661042677,-517.57679154,0.00016438,2]
[399766008,1766661042687,-517.57679154,0.00016438,2]
[399766009,1766661042697,-517.57679154,0.00016438,2]
[399766010,1766661042707,-517.57679154,0.00016438,2]
[399766011,1766661042716,-517.57679154,0.00016438,2]
[399766012,1766661042727,-517.57679154,0.00016438,2]
[399766013,1766661042736,-510.18283739,0.00016438,2]
[399766014,1766661042746,-510.18283739,0.00016438,2]
[399766015,1766661042756,-510.18283739,0.00016438,2]
[399766016,1766661042767,-510.18283739,0.00016438,2]
[399766017,1766661042777,-510.18283739,0.00016438,2]
[399766018,1766661042787,-510.18283739,0.00016438,2]
[399766020,1766661042797,-510.18283739,0.00016438,2]
[399766022,1766661042807,-510.18283739,0.00016438,2]
[399766024,1766661042818,-510.18283739,0.00016438,2]
[399766025,1766661042828,-510.18283739,0.00016438,2]
[399766026,1766661042837,-510.18283739,0.00016438,2]
[399766027,1766661042847,-510.18283739,0.00016438,2]
[399766028,1766661042857,-510.18283739,0.00016438,2]
[399766029,1766661042868,-510.18283739,0.00016438,2]
[399766030,1766661042878,-510.18283739,0.00016438,2]
[399766031,1766661042888,-510.18283739,0.00016438,2]
[399766032,1766661042898,-510.18283739,0.00016438,2]
[399766033,1766661042908,-510.18283739,0.00016438,2]
[399766034,1766661042918,-510.18283739,0.00016438,2]
[399766035,1766661042928,-510.18283739,0.00016438,2]
[399766036,1766661042938,-510.18283739,0.00016438,2]
[399766037,1766661042948,-500.0,0.00016438,2]
[399766038,1766661042959,-809.0,0.00016438,2]
[399766039,1766661042970,-716.0,0.00016438,2]
[399766040,1766661042979,-800.0,0.00016438,2]
[399766041,1766661042990,-500.0,0.00016465,2]
[399766042,1766661043000,-223.0315306,0.0001647,2]
[399766043,1766661043010,-740.38982778,0.00016473,2]
[399766044,1766661043021,-500.0,0.00016493,2]
[399766045,1766661043032,-500.0,0.0001652,2]
[399766046,1766661043042,-500.0,0.00016548,2]
[399766047,1766661043054,-500.0,0.00016575,2]
[399766048,1766661043064,-355.0,0.0001658,2]
[399766049,1766661043079,-500.0,0.00016602,2]
[399766050,1766661043090,-500.0,0.0001663,2]
[399766051,1766661043100,-1000.0,0.00016638,2]
[399766052,1766661043111,-500.0,0.00016657,2]
[399766053,1766661043122,-4229.44051462,0.0001666,2]
[399766054,1766661043134,-218.80351721,0.00016685,2]
[399766055,1766661043146,-166.83943149,0.0001671,2]
[399766056,1766661043156,-300.0,0.00016717,2]
[399766057,1766661043167,-500.0,0.00016731,2]
[399766058,1766661043177,-500.0,0.00016731,2]
[399766059,1766661043187,-500.0,0.00016731,2]
[399766060,1766661043198,-500.0,0.00016731,2]
[399766061,1766661043208,-500.0,0.00016731,2]
[399766062,1766661043219,-500.0,0.00016731,2]
[399766063,1766661043229,-500.0,0.00016731,2]
[399766064,1766661043240,-500.0,0.00016731,2]
[399766065,1766661043251,-500.0,0.00016731,2]
[399766066,1766661043262,-207.3850141,0.00016731,2]
[399766067,1766661043272,-500.0,0.00016731,2]
[399766068,1766661043283,-500.0,0.00016731,2]
[399766069,1766661043293,-500.0,0.00016731,2]
[399766070,1766661043303,-500.0,0.00016731,2]
[399766071,1766661043314,-206.41016771,0.00016732,2]
[399766072,1766661043325,-359.76179104,0.00016744,2]
[399766073,1766661043337,-543.0,0.00016744,2]
[399766074,1766661043347,-691.39774486,0.00016744,2]
[399766075,1766661043358,-300.0,0.00016748,2]
[399766076,1766661043368,-300.0,0.00016772,2]
[399766078,1766661043378,-300.0,0.0001679,2]
[399766080,1766661043388,-300.0,0.00016795,2]
[399766082,1766661043398,-1000.0,0.00016799,2]
[399766083,1766661043408,-197.61,0.00016803,2]
[399766084,1766661043418,-300.0,0.00016807,2]
[399766086,1766661043429,-150.0,0.00016808,2]
[399766087,1766661043439,-1000.0,0.00016823,2]
[399766088,1766661043449,-300.0,0.00016823,2]
[399766089,1766661043459,-151.0,0.00016827,2]
[399766090,1766661043470,-500.0,0.00016829,2]
[399766091,1766661043481,-500.0,0.00016829,2]
[399766092,1766661043492,-201810.50428143,0.0001683,2]
[399766093,1766661043502,-150.0,0.00016847,2]
[399766094,1766661043512,-300.0,0.00016848,2]
[399766095,1766661043522,-150.0,0.00016848,2]
[399766096,1766661043533,-150.0,0.00016849,2]
[399766097,1766661043544,-1000.0,0.0001685,2]
[399766098,1766661043555,-287.47,0.0001685,2]
[399766099,1766661043566,-150.0,0.00016852,2]
[399766100,1766661043575,-150.0,0.00016859,2]